bitfinex/quotes_BTCUSD_20240921
["timestamp","ask_amount","ask_price","bid_price","bid_amount"]
[1726936195911,1.87614387,63215.0,63214.0,1e-06]
[1726936196540,1.71641767,63215.0,63214.0,1e-06]
[1726936198404,1.40003767,63215.0,63214.0,1e-06]
[1726936201099,1.08365767,63215.0,63214.0,1e-06]
[1726936201297,1.08365767,63215.0,63214.0,0.002001]
[1726936201536,1.06965767,63215.0,63214.0,0.100101]
[1726936201741,1.18798464,63215.0,63214.0,0.100101]
[1726936202159,1.17831758,63215.0,63214.0,0.100101]
[1726936202368,1.17831758,63215.0,63214.0,0.098101]
[1726936202599,1.1783169,63215.0,63214.0,0.098101]
[1726936203460,1.1643169,63215.0,63214.0,0.098101]
[1726936203666,1.1503169,63215.0,63214.0,0.098101]
[1726936203902,1.1643169,63215.0,63214.0,0.098101]
[1726936204112,1.08365767,63215.0,63214.0,0.100101]
[1726936204592,1.15463979,63215.0,63214.0,0.100101]
[1726936204818,1.14063979,63215.0,63214.0,0.100101]
[1726936205040,1.15463979,63215.0,63214.0,0.100101]
[1726936205470,1.14063979,63215.0,63214.0,0.100101]
[1726936205975,1.45701979,63215.0,63214.0,0.098101]
[1726936206211,1.45701979,63215.0,63214.0,1e-06]
[1726936206212,1.4806969,63215.0,63214.0,1e-06]
[1726936206650,1.37203767,63215.0,63214.0,1e-06]
[1726936206918,1.51529965,63215.0,63214.0,1e-06]
[1726936207105,1.39703767,63215.0,63214.0,1e-06]
[1726936207323,1.38303767,63215.0,63214.0,1e-06]
[1726936207742,1.39303767,63215.0,63214.0,1e-06]
[1726936208198,1.37203767,63215.0,63214.0,1e-06]
[1726936208414,1.38603767,63215.0,63214.0,1e-06]
[1726936208626,1.40003767,63215.0,63214.0,1e-06]
[1726936209745,1.38603767,63215.0,63214.0,1e-06]
[1726936210189,1.40003767,63215.0,63214.0,1e-06]
[1726936210412,1.38603767,63215.0,63214.0,1e-06]
[1726936210638,1.40003767,63215.0,63214.0,1e-06]
[1726936211604,1.71641767,63215.0,63214.0,1e-06]
[1726936213656,1.70241767,63215.0,63214.0,1e-06]
[1726936214343,1.71641767,63215.0,63214.0,1e-06]
[1726936214777,1.70241767,63215.0,63214.0,1e-06]
[1726936214995,1.71641767,63215.0,63214.0,1e-06]
[1726936220086,1.70241767,63215.0,63214.0,1e-06]
[1726936220518,1.71641767,63215.0,63214.0,1e-06]
[1726936220745,1.70241767,63215.0,63214.0,1e-06]
[1726936221218,1.71641767,63215.0,63214.0,1e-06]
[1726936221647,1.87612087,63215.0,63214.0,1e-06]
[1726936221869,1.71641767,63215.0,63214.0,1e-06]
[1726936222300,1.87612618,63215.0,63214.0,1e-06]
[1726936222749,1.84812618,63215.0,63214.0,1e-06]
[1726936222973,1.86212618,63215.0,63214.0,1e-06]
[1726936223184,1.87612618,63215.0,63214.0,1e-06]
[1726936223853,1.71641767,63215.0,63214.0,1e-06]
[1726936225320,1.87612608,63215.0,63214.0,1e-06]
[1726936226242,1.90103186,63215.0,63214.0,1e-06]
[1726936227596,2.21741186,63215.0,63214.0,1e-06]
[1726936228024,2.15412886,63215.0,63214.0,1e-06]
[1726936228464,2.24762886,63215.0,63214.0,1e-06]
[1726936228678,2.29242973,63215.0,63214.0,1e-06]
[1726936228902,2.27842973,63215.0,63214.0,1e-06]
[1726936229112,2.29242973,63215.0,63214.0,1e-06]
[1726936229316,2.27842973,63215.0,63214.0,1e-06]
[1726936229554,2.26442973,63215.0,63214.0,1e-06]
[1726936230003,2.29242973,63215.0,63214.0,1e-06]
[1726936230207,2.27842973,63215.0,63214.0,1e-06]
[1726936230640,2.29242973,63215.0,63214.0,1e-06]
[1726936231558,2.29242973,63215.0,63211.0,0.000825]
[1726936231765,2.29242973,63215.0,63202.0,0.000826]
[1726936231766,0.668145,63205.0,63202.0,0.000826]
[1726936231975,1.14762867,63205.0,63202.0,0.000826]
[1726936232207,1.82528954,63205.0,63204.0,0.02897918]
[1726936232425,1.82528954,63205.0,63204.0,0.000825]
[1726936232637,2.14447409,63205.0,63204.0,0.000825]
[1726936232860,2.09967322,63205.0,63204.0,0.000825]
[1726936233090,1.78324322,63205.0,63204.0,0.000825]
[1726936234003,1.85604409,63205.0,63204.0,0.000825]
[1726936234220,1.84204409,63205.0,63204.0,0.000825]
[1726936234448,1.82804409,63205.0,63204.0,0.000825]
[1726936234668,1.78324322,63205.0,63204.0,0.000825]
[1726936234884,1.82804409,63205.0,63204.0,0.000825]
[1726936235819,1.84204409,63205.0,63204.0,0.000825]
[1726936236040,1.8605111,63205.0,63204.0,0.000825]
[1726936236404,1.8465111,63205.0,63204.0,0.000825]
[1726936236611,1.8605111,63205.0,63204.0,0.000825]
[1726936237157,1.82971023,63205.0,63204.0,0.000825]
[1726936239448,1.97153416,63205.0,63204.0,0.000825]
[1726936240306,1.82971023,63205.0,63204.0,0.000825]
[1726936243050,1.73621023,63205.0,63204.0,0.000825]
[1726936243260,1.85754142,63205.0,63204.0,0.000825]
[1726936245298,1.54111142,63205.0,63204.0,0.000825]
[1726936245546,1.41978023,63205.0,63204.0,0.000825]
[1726936245786,1.65925184,63205.0,63204.0,0.092025]
[1726936246002,1.65925097,63205.0,63204.0,0.092025]
[1726936246214,1.54111142,63205.0,63204.0,0.092025]
[1726936246434,1.51311142,63205.0,63204.0,0.092025]
[1726936246951,0.39928377,63205.0,63204.0,0.092025]
[1726936247181,0.19105367,63205.0,63204.0,0.092025]
[1726936247412,0.19105367,63205.0,63204.0,0.094025]
[1726936247413,0.028,63205.0,63204.0,0.094025]
[1726936247638,0.028,63205.0,63204.0,0.32195946]
[1726936247854,0.014,63205.0,63204.0,0.16374246]
[1726936248298,0.014,63205.0,63204.0,0.12221342]
[1726936248514,0.805075,63205.0,63204.0,0.12221342]
[1726936248758,1.07612867,63205.0,63204.0,0.11721342]
[1726936248974,0.75969867,63205.0,63204.0,0.089025]
[1726936249233,0.74569867,63205.0,63204.0,0.089025]
[1726936249447,0.75369867,63205.0,63204.0,0.089025]
[1726936249664,0.75369867,63205.0,63204.0,0.087025]
[1726936249665,1.07012867,63205.0,63204.0,0.087025]
[1726936249894,1.10938922,63205.0,63204.0,0.087025]
[1726936250112,1.30125351,63205.0,63204.0,0.087025]
[1726936250548,1.30725351,63205.0,63204.0,0.087025]
[1726936250774,1.29225351,63205.0,63204.0,0.087025]
[1726936251004,1.28625351,63205.0,63204.0,0.087025]
[1726936251210,0.98682351,63205.0,63204.0,0.089025]
[1726936251641,0.80195922,63205.0,63204.0,0.089025]
[1726936251904,0.75469867,63205.0,63204.0,0.089025]
[1726936252601,0.74569867,63205.0,63204.0,0.089025]
[1726936253268,0.75469867,63205.0,63204.0,0.089025]
[1726936253745,0.43826867,63205.0,63204.0,0.089025]
[1726936253964,0.48557031,63205.0,63204.0,0.089025]
[1726936254189,0.43826867,63205.0,63204.0,0.089025]
[1726936254869,0.43826867,63205.0,63204.0,0.11816301]
[1726936255531,0.75469867,63205.0,63204.0,0.11816301]
[1726936256035,0.75469867,63205.0,63204.0,0.089025]
[1726936256945,0.28005367,63205.0,63204.0,0.0980927]
[1726936257176,0.28005367,63205.0,63204.0,0.089025]
[1726936257425,0.43826867,63205.0,63204.0,0.11815967]
[1726936257873,0.75469867,63205.0,63204.0,0.11815967]
[1726936258573,0.75469867,63205.0,63204.0,0.11898567]
[1726936258797,0.75469867,63205.0,63204.0,0.089851]
[1726936261054,0.28005367,63205.0,63204.0,0.089851]
[1726936261305,0.43826867,63205.0,63204.0,0.089851]
[1726936261534,0.43826867,63205.0,63204.0,0.59362564]
[1726936261535,0.017,63205.0,63204.0,0.59362564]
[1726936261748,0.017,63205.0,63204.0,1.49165993]
[1726936262509,0.017,63205.0,63204.0,1.30679564]
[1726936262742,0.001654,63215.0,63214.0,0.160192]
[1726936262955,0.16470767,63215.0,63214.0,0.253592]
[1726936263193,0.16470767,63215.0,63214.0,0.0954]
[1726936263424,0.26470767,63215.0,63214.0,0.0954]
[1726936263642,0.42289767,63215.0,63214.0,0.0954]
[1726936264309,0.26470767,63215.0,63214.0,0.253592]
[1726936264777,0.001654,63215.0,63214.0,0.7049538]
[1726936265009,0.001654,63215.0,63214.0,1.0213388]
[1726936265456,0.008654,63215.0,63214.0,1.1016388]
[1726936266407,0.014654,63215.0,63214.0,1.4180238]
[1726936267548,0.009654,63215.0,63214.0,1.4180238]
[1726936268014,0.1,63232.0,63231.0,0.002]
[1726936268224,0.97483556,63232.0,63231.0,0.002]
[1726936268433,0.57934867,63232.0,63230.0,0.002]
[1726936268888,0.73749567,63232.0,63231.0,0.002]
[1726936269148,0.42120067,63232.0,63231.0,0.02451885]
[1726936269383,0.1,63232.0,63231.0,0.002]
[1726936269606,0.014,63232.0,63231.0,0.01154]
[1726936269860,0.028,63232.0,63231.0,0.03405885]
[1726936270066,0.028,63232.0,63231.0,0.01539315]
[1726936270300,0.014,63232.0,63231.0,0.01539315]
[1726936270974,0.1,63236.0,63234.0,0.002]
[1726936271201,0.258138,63236.0,63235.0,0.002]
[1726936271884,0.574413,63236.0,63235.0,0.002]
[1726936272109,0.73746667,63236.0,63235.0,0.002]
[1726936272863,0.43519167,63236.0,63235.0,0.003]
[1726936273346,0.76446667,63236.0,63235.0,0.004]
[1726936273593,0.34819067,63236.0,63235.0,0.004]
[1726936274418,0.66446567,63236.0,63235.0,0.004]
[1726936274977,1.16560496,63236.0,63235.0,0.002]
[1726936275226,1.48187996,63236.0,63235.0,0.002]
[1726936277638,1.50049313,63236.0,63235.0,0.002]
[1726936281680,1.50214513,63236.0,63235.0,0.002]
[1726936284892,0.790825,63225.0,63224.0,0.23733989]
[1726936285112,0.16305367,63225.0,63224.0,0.23733989]
[1726936285327,0.32121867,63225.0,63224.0,0.25984614]
[1726936285555,0.18486429,63227.0,63223.0,0.0933]
[1726936285696,0.158164,63226.0,63224.0,0.02250625]
[1726936285925,0.158164,63226.0,63225.0,0.02759822]
[1726936286302,0.18486429,63227.0,63225.0,0.02759822]
[1726936286504,0.316303,63231.0,63225.0,0.02759822]
[1726936286505,0.316301,63231.0,63225.0,0.02759822]
[1726936286704,0.158155,63229.0,63225.0,0.02759822]
[1726936286931,0.158152,63230.0,63225.0,0.02759822]
[1726936287134,0.158152,63230.0,63226.0,0.12535322]
[1726936288062,0.158155,63229.0,63226.0,0.12535322]
[1726936288476,0.158152,63230.0,63226.0,0.12535322]
[1726936288656,0.170152,63230.0,63226.0,0.12535322]
[1726936288856,0.180152,63230.0,63227.0,0.01868571]
[1726936289143,0.168152,63230.0,63227.0,0.06137668]
[1726936289338,0.158152,63230.0,63227.0,0.06137668]
[1726936289568,0.017,63229.0,63227.0,0.06137668]
[1726936289971,0.008,63229.0,63228.0,0.002]
[1726936290297,0.008,63229.0,63228.0,0.0206807]
[1726936290502,0.166155,63229.0,63228.0,0.002]
[1726936290742,0.158155,63229.0,63228.0,0.02449132]
[1726936290956,0.158155,63229.0,63228.0,0.00581062]
[1726936291390,0.006,63230.0,63229.0,0.0953]
[1726936291601,0.18486429,63231.0,63230.0,0.002]
[1726936291814,0.316285,63235.0,63234.0,0.002]
[1726936291815,0.47442,63235.0,63234.0,0.002]
[1726936292037,0.63747367,63235.0,63234.0,0.002]
[1726936292702,0.63747367,63235.0,63234.0,0.02446896]
[1726936292921,0.32119367,63235.0,63234.0,0.002]
[1726936293153,0.33319367,63235.0,63234.0,0.002]
[1726936293362,0.33319367,63235.0,63234.0,0.02446896]
[1726936294246,0.33319367,63235.0,63234.0,0.04154367]
[1726936294247,0.17505367,63235.0,63234.0,0.04154367]
[1726936294477,0.18605367,63235.0,63234.0,0.04154367]
[1726936294685,0.18770367,63235.0,63234.0,0.04154367]
[1726936295139,0.34584367,63235.0,63234.0,0.04154367]
[1726936296175,0.34584367,63235.0,63234.0,0.02446896]
[1726936299942,0.46701047,63235.0,63234.0,0.02446896]
[1726936300780,0.30887047,63235.0,63234.0,0.02446896]
[1726936301024,0.46701047,63235.0,63234.0,0.02446896]
[1726936301868,0.30887047,63235.0,63234.0,0.02446896]
[1726936302509,0.34584367,63235.0,63234.0,0.02446896]
[1726936302921,0.02465,63235.0,63234.0,0.05214326]
[1726936303211,0.02441077,63235.0,63234.0,0.91078096]
[1726936303884,0.01341077,63235.0,63234.0,0.91078096]
[1726936304740,0.02441077,63235.0,63234.0,0.91078096]
[1726936305155,0.01265,63235.0,63234.0,0.91078096]
[1726936305369,0.02465,63235.0,63234.0,1.04568844]
[1726936305599,0.01365,63235.0,63234.0,1.04568844]
[1726936305822,0.00165,63235.0,63234.0,1.04568844]
[1726936306041,0.00665,63235.0,63234.0,1.36197344]
[1726936306683,0.00665,63235.0,63234.0,1.04568844]
[1726936307108,0.01065,63235.0,63234.0,1.04568844]
[1726936309339,0.00565,63235.0,63234.0,1.04568844]
[1726936309555,0.00565,63235.0,63234.0,1.04668844]
[1726936309998,0.00165,63235.0,63234.0,1.04668844]
[1726936310206,0.00265,63235.0,63234.0,1.04668844]
[1726936312176,0.00265,63235.0,63234.0,1.36297344]
[1726936312384,0.00265,63235.0,63234.0,1.38597344]
[1726936312838,0.00265,63235.0,63234.0,1.46127344]
[1726936313747,0.00265,63235.0,63234.0,1.62432711]
[1726936314803,0.00165,63235.0,63234.0,1.62432711]
[1726936315016,0.00265,63235.0,63234.0,1.72432711]
[1726936315249,0.00265,63235.0,63234.0,1.72332711]
[1726936315664,0.00365,63235.0,63234.0,1.72832711]
[1726936317152,0.001652,63253.0,63252.0,0.0976]
[1726936317366,0.001652,63253.0,63252.0,0.59153341]
[1726936317575,0.001652,63253.0,63252.0,1.24310282]
[1726936318461,0.001652,63253.0,63252.0,1.36610282]
[1726936318644,0.003652,63253.0,63252.0,1.36610282]
[1726936319583,0.003652,63253.0,63252.0,1.87699149]
[1726936319852,0.0037784,63258.0,63257.0,1.51175322]
[1726936320079,0.0037784,63258.0,63257.0,1.6748388]
[1726936320721,0.0037784,63258.0,63257.0,1.49028058]
[1726936321153,0.0037784,63258.0,63257.0,1.50881627]
[1726936321361,0.0037784,63258.0,63257.0,0.85347627]
[1726936321571,0.0037784,63258.0,63257.0,0.17862069]
[1726936321833,0.0037784,63258.0,63257.0,0.49479069]
[1726936322518,0.0037784,63258.0,63257.0,0.81096069]
[1726936322787,0.0037784,63258.0,63257.0,1.00556069]
[1726936323015,0.0107784,63258.0,63257.0,1.46393197]
[1726936323238,0.0107784,63258.0,63257.0,1.45593197]
[1726936323445,0.0097784,63258.0,63257.0,1.45593197]
[1726936323684,0.0097784,63258.0,63257.0,0.94516197]
[1726936323685,0.0117784,63258.0,63257.0,0.94516197]
[1726936323911,0.0057784,63258.0,63257.0,0.62899197]
[1726936324562,0.0057784,63258.0,63257.0,0.94516197]
[1726936325256,0.0067784,63258.0,63257.0,0.94516197]
[1726936326433,0.0057784,63258.0,63257.0,0.94516197]
[1726936326683,0.0057784,63258.0,63257.0,0.62899197]
[1726936327126,0.0037784,63258.0,63257.0,0.62899197]
[1726936328378,0.0047784,63258.0,63257.0,0.62899197]
[1726936328582,0.0047784,63258.0,63257.0,0.94516197]
[1726936329154,0.0037784,63258.0,63257.0,0.63099197]
[1726936329386,0.0037784,63258.0,63257.0,0.63299197]
[1726936329680,0.0037784,63258.0,63257.0,0.64041396]
[1726936330104,0.0037784,63258.0,63257.0,0.50621268]
[1726936330532,0.0037784,63258.0,63257.0,0.19004268]
[1726936330703,0.0037784,63258.0,63257.0,0.02995768]
[1726936330917,0.0037784,63258.0,63257.0,0.18804268]
[1726936331128,0.02037297,63258.0,63257.0,0.03195768]
[1726936331763,0.02202297,63258.0,63257.0,0.02995768]
[1726936331969,0.02402297,63258.0,63257.0,0.02995768]
[1726936332178,0.02402297,63258.0,63257.0,0.18604268]
[1726936332392,0.20858119,63258.0,63257.0,0.02795768]
[1726936332602,0.21058119,63258.0,63257.0,0.02595768]
[1726936333027,0.20858119,63258.0,63257.0,0.02595768]
[1726936333848,0.21059284,63258.0,63257.0,0.02595768]
[1726936334685,0.21059284,63258.0,63257.0,0.18404268]
[1726936334892,0.21059284,63258.0,63257.0,0.18604268]
[1726936335126,0.02603462,63258.0,63257.0,0.60950548]
[1726936335969,0.02603462,63258.0,63257.0,0.29333548]
[1726936336171,0.02403462,63258.0,63257.0,0.29333548]
[1726936336338,0.02203462,63258.0,63257.0,0.29433548]
[1726936336555,0.02203462,63258.0,63257.0,0.18804268]
[1726936336793,0.02203462,63258.0,63257.0,0.50421268]
[1726936336987,0.02203462,63258.0,63257.0,0.50321268]
[1726936337186,0.02203462,63258.0,63257.0,0.50421268]
[1726936337630,0.0054284,63258.0,63257.0,0.50421268]
[1726936337826,0.02198091,63258.0,63257.0,0.50421268]
[1726936338057,0.02198091,63258.0,63257.0,0.61170348]
[1726936338445,0.02198091,63258.0,63257.0,0.18804268]
[1726936338736,0.02198091,63258.0,63257.0,0.02995768]
[1726936339709,0.02198091,63258.0,63257.0,0.02895768]
[1726936339912,0.62031253,63258.0,63257.0,0.02595768]
[1726936340085,0.14606553,63258.0,63257.0,0.02595768]
[1726936341558,0.14306553,63258.0,63257.0,0.02595768]
[1726936341762,0.14606553,63258.0,63257.0,0.09521325]
[1726936341984,0.15206553,63258.0,63257.0,0.09521325]
[1726936342188,0.14306553,63258.0,63257.0,0.09521325]
[1726936342413,0.14306553,63258.0,63257.0,0.25329825]
[1726936342653,0.15406553,63258.0,63257.0,0.25329825]
[1726936344038,0.15406553,63258.0,63257.0,0.18404268]
[1726936344253,0.15406553,63258.0,63257.0,0.02595768]
[1726936344481,0.31214753,63258.0,63257.0,0.02595768]
[1726936345457,0.15406553,63258.0,63257.0,0.02795768]
[1726936345911,0.14806553,63258.0,63257.0,0.02795768]
[1726936346128,0.15806742,63258.0,63257.0,0.02895768]
[1726936346347,1.10153309,63258.0,63257.0,0.02595768]
[1726936346586,1.60569809,63258.0,63257.0,0.02595768]
[1726936346830,1.70189809,63258.0,63257.0,0.002]
[1726936347269,1.72050254,63258.0,63257.0,0.002]
[1726936347967,1.4588111,63258.0,63257.0,0.001]
[1726936348235,0.18503647,63258.0,63257.0,0.001]
[1726936348473,0.35202201,63258.0,63257.0,0.001]
[1726936348704,0.19696834,63258.0,63257.0,0.06676836]
[1726936349000,0.19696634,63258.0,63257.0,0.06676836]
[1726936349225,0.17996634,63258.0,63257.0,0.06576836]
[1726936349433,0.20796634,63258.0,63257.0,0.06676836]
[1726936349681,0.20796634,63258.0,63257.0,0.06576836]
[1726936350137,0.22196634,63258.0,63257.0,0.06676836]
[1726936350361,0.22196634,63258.0,63257.0,0.02705533]
[1726936351971,0.2055104,63258.0,63257.0,0.02705533]
[1726936352187,0.22199808,63258.0,63257.0,0.02705533]
[1726936353039,0.22199808,63258.0,63257.0,0.02905533]
[1726936354229,0.06391608,63258.0,63257.0,0.10319319]
[1726936354438,0.06391608,63258.0,63257.0,0.26127819]
[1726936355104,0.06391608,63258.0,63257.0,0.10319319]
[1726936355728,0.06391608,63258.0,63257.0,0.89361819]
[1726936355963,0.06391608,63258.0,63257.0,1.20978819]
[1726936356321,0.06391608,63258.0,63257.0,1.30588819]
[1726936356528,0.04991608,63258.0,63257.0,1.30588819]
[1726936356984,0.05891608,63258.0,63257.0,1.30688819]
[1726936357192,0.05891608,63258.0,63257.0,1.35403272]
[1726936357796,0.03091608,63258.0,63257.0,1.35303272]
[1726936358213,0.02491608,63258.0,63257.0,1.35403272]
[1726936358373,0.02191608,63258.0,63257.0,1.35417349]
[1726936358586,0.02191608,63258.0,63257.0,1.30488819]
[1726936358793,0.02591608,63258.0,63257.0,1.30488819]
[1726936359460,0.0094284,63258.0,63257.0,1.62105819]
[1726936359676,0.0094284,63258.0,63257.0,2.07880093]
[1726936359915,0.0064284,63258.0,63257.0,1.98451186]
[1726936360131,0.0074284,63258.0,63257.0,1.98451186]
[1726936360356,0.0074284,63258.0,63257.0,1.98651186]
[1726936360548,0.001652,63269.0,63268.0,0.792287]
[1726936360779,0.01821894,63269.0,63268.0,0.888387]
[1726936361025,0.01821894,63269.0,63268.0,0.91437557]
[1726936361488,0.01821894,63269.0,63268.0,1.23049057]
[1726936362643,0.001652,63269.0,63268.0,1.23049057]
[1726936362850,0.001652,63269.0,63268.0,1.3582659]
[1726936363260,0.001652,63269.0,63268.0,1.4812659]
[1726936363529,0.001652,63269.0,63268.0,1.96043457]
[1726936364467,0.001652,63269.0,63268.0,2.00863883]
[1726936364670,0.001652,63269.0,63268.0,1.96043457]
[1726936364911,0.002652,63269.0,63268.0,1.97043457]
[1726936365131,0.002652,63269.0,63268.0,1.97243457]
[1726936365352,0.001652,63269.0,63268.0,2.00962081]
[1726936365581,0.002652,63269.0,63268.0,2.05373457]
[1726936365794,0.002652,63269.0,63268.0,2.12153777]
[1726936366255,0.002652,63269.0,63268.0,2.05073457]
[1726936366469,0.001652,63269.0,63268.0,2.08990256]
[1726936366684,0.002652,63269.0,63268.0,1.5715659]
[1726936367297,0.003652,63269.0,63268.0,1.5815659]
[1726936367548,0.002652,63269.0,63268.0,1.4892659]
[1726936367791,0.002652,63269.0,63268.0,1.5002659]
[1726936368041,0.002652,63269.0,63268.0,1.4922659]
[1726936368277,0.002652,63269.0,63268.0,1.4882659]
[1726936368498,0.004652,63269.0,63268.0,1.4982659]
[1726936368930,0.003652,63269.0,63268.0,1.4912659]
[1726936369139,0.004652,63269.0,63268.0,1.4982659]
[1726936369575,0.003652,63269.0,63268.0,1.4912659]
[1726936369989,0.004652,63269.0,63268.0,1.4972659]
[1726936370219,0.002652,63269.0,63268.0,1.3911659]
[1726936370684,0.003652,63269.0,63268.0,1.3971659]
[1726936370883,0.002652,63269.0,63268.0,1.3911659]
[1726936371119,0.002652,63269.0,63268.0,1.3851659]
[1726936371358,0.003652,63269.0,63268.0,1.3851659]
[1726936371590,0.003652,63269.0,63268.0,0.9460509]
[1726936371849,0.003652,63269.0,63268.0,0.6299359]
[1726936372062,0.001652,63269.0,63268.0,0.6299359]
[1726936372268,0.003652,63269.0,63268.0,0.6299359]
[1726936372456,0.003652,63269.0,63268.0,0.6349359]
[1726936372754,0.003652,63269.0,63268.0,0.9510509]
[1726936372987,0.001652,63269.0,63268.0,0.9510509]
[1726936373178,0.003652,63269.0,63268.0,1.2671659]
[1726936373479,0.003652,63269.0,63268.0,0.9510509]
[1726936373692,0.003652,63269.0,63268.0,0.9460509]
[1726936373906,0.003652,63269.0,63268.0,1.0460509]
[1726936374014,0.005652,63269.0,63268.0,1.4592659]
[1726936374224,0.005652,63269.0,63268.0,1.64531957]
[1726936374670,0.007652,63269.0,63268.0,1.63856729]
[1726936374883,0.007652,63269.0,63268.0,1.64056729]
[1726936375087,0.007652,63269.0,63268.0,1.63856729]
[1726936375307,0.001652,63269.0,63268.0,1.63856729]
[1726936375574,0.003652,63269.0,63268.0,1.65156729]
[1726936377201,0.003652,63269.0,63268.0,1.07529862]
[1726936377454,0.003652,63269.0,63268.0,0.82452329]
[1726936379306,0.003652,63269.0,63268.0,0.50840829]
[1726936379980,0.003652,63269.0,63268.0,0.82452329]
[1726936381162,0.002652,63269.0,63268.0,0.81152329]
[1726936381406,0.001652,63269.0,63268.0,0.81152329]
[1726936381633,0.008652,63269.0,63268.0,0.92428852]
[1726936381859,0.005652,63269.0,63268.0,0.92428852]
[1726936382094,0.001652,63269.0,63268.0,0.92528852]
[1726936382317,0.001652,63269.0,63268.0,0.92628852]
[1726936382567,0.001652,63269.0,63268.0,0.92528852]
[1726936382817,0.001652,63269.0,63268.0,0.92628852]
[1726936384743,0.001652,63269.0,63268.0,0.92428852]
[1726936384977,0.001652,63269.0,63268.0,0.92628852]
[1726936385173,0.001652,63269.0,63268.0,0.61217352]
[1726936385617,0.001652,63269.0,63268.0,0.02523629]
[1726936385861,0.001652,63269.0,63268.0,0.18329329]
[1726936386646,0.569717,63269.0,63268.0,0.02323629]
[1726936386891,0.885827,63269.0,63268.0,0.02323629]
[1726936387131,0.885827,63269.0,63268.0,0.004]
[1726936387389,0.569717,63269.0,63268.0,0.004]
[1726936387860,0.569717,63269.0,63262.0,0.160072]
[1726936387861,0.158064,63266.0,63262.0,0.160072]
[1726936388103,0.18455818,63263.0,63262.0,0.160072]
[1726936388339,0.18455818,63263.0,63262.0,0.20898212]
[1726936388577,0.18455818,63263.0,63262.0,0.05091012]
[1726936388816,0.18455818,63263.0,63262.0,0.20898212]
[1726936389530,0.19055818,63263.0,63262.0,0.20998212]
[1726936389763,0.19655818,63263.0,63262.0,0.21098212]
[1726936390221,0.19655818,63263.0,63262.0,0.21173696]
[1726936390691,0.19655818,63263.0,63262.0,0.23024766]
[1726936390919,0.19655818,63263.0,63262.0,0.02326554]
[1726936391863,0.19655818,63263.0,63262.0,0.18133754]
[1726936392327,0.012,63263.0,63262.0,0.18133754]
[1726936392556,0.012,63263.0,63262.0,0.49748254]
[1726936392788,0.012,63263.0,63262.0,0.61054509]
[1726936393988,0.012,63263.0,63262.0,0.29440009]
[1726936394698,0.012,63263.0,63262.0,0.61054509]
[1726936394951,0.012,63263.0,63262.0,0.29440009]
[1726936395208,0.012,63263.0,63262.0,0.49748254]
[1726936396808,0.012,63263.0,63262.0,0.18133754]
[1726936399533,0.012,63263.0,63262.0,0.49748254]
[1726936402339,0.013652,63263.0,63262.0,0.49748254]
[1726936403253,0.013652,63263.0,63262.0,0.81362754]
[1726936403475,0.013652,63263.0,63262.0,1.24283479]
[1726936404364,0.007652,63263.0,63262.0,1.24183479]
[1726936404789,0.009652,63263.0,63262.0,1.24183479]
[1726936405268,0.009652,63263.0,63262.0,0.92568979]
[1726936405508,0.575562,63263.0,63262.0,0.02026554]
[1726936405728,0.569562,63263.0,63262.0,0.02707481]
[1726936405943,1.05075567,63263.0,63262.0,0.002]
[1726936406160,0.73461567,63263.0,63262.0,0.002]
[1726936406641,1.05075567,63263.0,63262.0,0.002]
[1726936406902,0.73461567,63263.0,63262.0,0.002]
[1726936407323,0.158077,63261.0,63258.0,0.23803828]
[1726936407506,0.12103998,63259.0,63258.0,0.23803828]
[1726936407936,0.12103998,63259.0,63258.0,0.000826]
[1726936408159,0.1845306,63259.0,63258.0,0.000826]
[1726936408371,0.1845306,63259.0,63258.0,0.002826]
[1726936408588,0.1845306,63259.0,63258.0,0.02135669]
[1726936409024,0.1845306,63259.0,63258.0,0.02235669]
[1726936409360,0.1895306,63259.0,63258.0,0.02235669]
[1726936409827,0.3476106,63259.0,63258.0,0.02235669]
[1726936410001,0.6687706,63259.0,63258.0,0.02235669]
[1726936410200,0.6687706,63259.0,63258.0,0.001826]
[1726936410382,0.6637706,63259.0,63258.0,0.002826]
[1726936410635,0.6687706,63259.0,63258.0,0.003826]
[1726936411074,0.6637706,63259.0,63258.0,0.002826]
[1726936411304,0.6587706,63259.0,63258.0,0.002826]
[1726936411539,0.6687706,63259.0,63258.0,0.003826]
[1726936412439,0.3526106,63259.0,63258.0,0.003826]
[1726936412673,0.3526106,63259.0,63258.0,0.04521363]
[1726936412895,0.3526106,63259.0,63258.0,0.0201003]
[1726936413124,0.3526106,63259.0,63258.0,0.04521789]
[1726936413351,0.1945306,63259.0,63258.0,0.04521789]
[1726936413568,0.01,63259.0,63258.0,0.04521789]
[1726936413780,0.01,63259.0,63258.0,0.20329989]
[1726936413990,0.01,63259.0,63258.0,0.04521789]
[1726936414411,0.01,63259.0,63258.0,0.20329989]
[1726936415069,0.01,63259.0,63258.0,0.51946489]
[1726936415279,0.01,63259.0,63258.0,0.20329989]
[1726936415715,0.01,63259.0,63258.0,0.83562989]
[1726936415962,0.01,63259.0,63258.0,0.51946489]
[1726936416390,0.01,63259.0,63258.0,0.83562989]
[1726936416622,0.01,63259.0,63258.0,0.51946489]
[1726936417801,0.01,63259.0,63258.0,0.83562989]
[1726936418255,0.01,63259.0,63258.0,0.51946489]
[1726936418507,0.01,63259.0,63258.0,0.83562989]
[1726936419158,0.01,63259.0,63258.0,1.15179489]
[1726936419370,0.01,63259.0,63258.0,0.83562989]
[1726936420529,0.005,63259.0,63258.0,0.83462989]
[1726936421200,0.005,63259.0,63258.0,0.83562989]
[1726936421641,0.001652,63263.0,63262.0,0.476217]
[1726936421851,0.001652,63263.0,63262.0,0.59139369]
[1726936422073,0.001652,63263.0,63262.0,0.61650268]
[1726936423248,0.002652,63263.0,63262.0,0.61650268]
[1726936424881,0.001652,63263.0,63262.0,0.61650268]
[1726936425101,0.002652,63263.0,63262.0,0.61650268]
[1726936430134,0.002652,63263.0,63262.0,0.93264768]
[1726936432830,0.002652,63263.0,63262.0,0.61650268]
[1726936434960,0.002652,63263.0,63262.0,1.24879268]
[1726936435404,0.002652,63263.0,63262.0,1.81927877]
[1726936435619,0.002652,63263.0,63262.0,1.89824461]
[1726936435821,0.002652,63263.0,63262.0,2.09607501]
[1726936436329,0.003652,63263.0,63262.0,2.10107501]
[1726936436544,0.002652,63263.0,63262.0,2.10107501]
[1726936436781,0.001652,63263.0,63262.0,2.09607501]